bitfinex/quotes_SOLUSD_20241126
["timestamp","ask_amount","ask_price","bid_price","bid_amount"]
[1732637716561,0.5161833,229.16,229.14,20.0]
[1732637717781,0.5161833,229.16,229.11,15.0827]
[1732637717973,0.5161833,229.16,229.14,20.0]
[1732637718173,0.5161833,229.16,229.15,20.0]
[1732637720984,0.5161833,229.16,229.15,24.3639]
[1732637721975,0.5161833,229.16,229.14,20.0]
[1732637722167,0.5161833,229.16,229.11,15.0827]
[1732637722362,15.64039478,229.16,229.14,20.0]
[1732637722883,15.64039478,229.16,229.11,19.4473]
[1732637723172,15.64039478,229.16,229.11,15.0827]
[1732637724662,15.12421148,229.14,229.09,20.0]
[1732637725678,15.64039478,229.16,229.09,35.12421148]
[1732637725973,15.12421148,229.14,229.07,4.3654]
[1732637726276,15.12421148,229.14,229.09,24.365]
[1732637727184,15.12421148,229.14,229.1,20.0]
[1732637727974,15.64039478,229.16,229.09,39.48921148]
[1732637728471,15.64039478,229.16,229.09,24.365]
[1732637728677,0.5161833,229.16,229.15,15.12421148]
[1732637729074,0.5161833,229.16,229.15,20.0]
[1732637729377,0.5161833,229.16,229.12,20.0]
[1732637729873,0.5161833,229.16,229.13,15.12421148]
[1732637730074,0.5161833,229.16,229.15,20.0]
[1732637730270,0.5161833,229.16,229.15,39.48811148]
[1732637730482,0.5161833,229.16,229.15,56.09221148]
[1732637734993,15.12421148,229.28,229.22,4.3624]
[1732637737094,14.62421148,229.28,229.22,4.3624]
[1732637737876,14.62421148,229.28,229.23,24.3622]
[1732637738178,15.12421148,229.29,229.23,24.3622]
[1732637738376,15.12421148,229.28,229.24,20.0]
[1732637738974,15.12421148,229.28,229.23,24.3622]
[1732637739174,7.63910621,229.34,229.27,15.12421148]
[1732637739379,15.12421148,229.32,229.27,20.0]
[1732637740085,15.12421148,229.28,229.19,10.9075]
[1732637740286,15.12421148,229.28,229.23,20.0]
[1732637740487,15.12421148,229.29,229.22,35.12421148]
[1732637740693,15.12421148,229.29,229.24,20.0]
[1732637741497,15.12421148,229.3,229.24,24.362]
[1732637741877,15.12421148,229.3,229.25,20.0]
[1732637742078,15.12421148,229.31,229.25,20.0]
[1732637742470,15.12421148,229.31,229.24,19.48621148]
[1732637742903,15.12421148,229.31,229.24,4.362]
[1732637743498,15.12421148,229.31,229.26,24.3618]
[1732637743796,15.12421148,229.32,229.26,4.3618]
[1732637744302,15.12421148,229.31,229.26,4.3618]
[1732637744487,15.12421148,229.33,229.26,4.3618]
[1732637745198,15.12421148,229.32,229.26,4.3618]
[1732637745394,0.5161833,229.38,229.3,35.12421148]
[1732637745698,0.5161833,229.38,229.33,15.12421148]
[1732637746232,0.5161833,229.38,229.31,15.12421148]
[1732637746377,0.5161833,229.38,229.32,15.12421148]
[1732637746779,0.5161833,229.38,229.34,15.12421148]
[1732637747210,0.5161833,229.38,229.36,15.12421148]
[1732637748091,0.5161833,229.38,229.32,15.12421148]
[1732637748599,15.64039478,229.38,229.31,4.3609]
[1732637749498,0.5161833,229.38,229.32,15.12421148]
[1732637750705,0.5161833,229.38,229.34,15.12421148]
[1732637751305,0.5161833,229.38,229.36,15.12421148]
[1732637753403,0.5161833,229.38,229.36,19.48411148]
[1732637753590,0.5161833,229.38,229.36,15.12421148]
[1732637754197,0.5161833,229.38,229.36,19.48411148]
[1732637755406,0.5161833,229.38,229.34,15.12421148]
[1732637755607,0.5161833,229.38,229.36,15.12421148]
[1732637757112,0.5161833,229.38,229.36,19.48411148]
[1732637757310,0.5161833,229.38,229.36,15.12421148]
[1732637758094,0.5161833,229.38,229.35,4.3601]
[1732637759106,0.5161833,229.38,229.34,20.0]
[1732637759503,0.5161833,229.38,229.35,15.12421148]
[1732637759706,0.5161833,229.38,229.33,15.12421148]
[1732637760518,0.5161833,229.38,229.34,4.3603]
[1732637760705,0.5161833,229.38,229.35,9.63857532]
[1732637761398,0.5161833,229.38,229.34,24.3603]
[1732637761597,0.5161833,229.38,229.28,10.9036]
[1732637761798,0.5161833,229.38,229.3,20.0]
[1732637761998,0.5161833,229.38,229.31,9.63857532]
[1732637762414,0.5161833,229.38,229.33,9.63857532]
[1732637762920,14.51435862,229.38,229.31,33.99937532]
[1732637763129,10.15475862,229.38,229.31,33.99937532]
[1732637763430,0.5161833,229.38,229.36,9.63857532]
[1732637763724,0.5161833,229.38,229.34,9.63857532]
[1732637764698,0.5161833,229.38,229.36,9.63857532]
[1732637765803,0.5161833,229.38,229.36,13.99847532]
[1732637766815,0.5161833,229.38,229.36,4.3599]
[1732637767009,0.5161833,229.38,229.37,9.63857532]
[1732637767697,0.5161833,229.38,229.37,13.99827532]
[1732637768014,0.5161833,229.38,229.3,20.0]
[1732637768206,0.5161833,229.38,229.33,9.63857532]
[1732637768412,9.63857532,229.37,229.28,4.3614]
[1732637768618,9.63857532,229.37,229.28,13.99997532]
[1732637768914,9.63857532,229.35,229.28,9.63857532]
[1732637769116,9.63857532,229.3,229.22,9.63857532]
[1732637769619,9.63857532,229.32,229.24,9.63857532]
[1732637769827,13.99927532,229.32,229.24,14.00067532]
[1732637770127,13.99927532,229.32,229.24,9.63857532]
[1732637770298,15.07356721,229.31,229.24,15.07356721]
[1732637771232,19.43426721,229.32,229.25,15.07356721]
[1732637771517,19.43426721,229.32,229.23,20.0]
[1732637771518,19.43426721,229.32,229.24,19.43576721]
[1732637771715,15.07356721,229.31,229.24,19.43576721]
[1732637771892,4.3607,229.32,229.25,15.07356721]
[1732637772096,15.07356721,229.31,229.26,20.0]
[1732637772400,15.07356721,229.31,229.24,19.43576721]
[1732637772615,15.07356721,229.3,229.26,20.0]
[1732637772915,19.43406721,229.33,229.26,35.07356721]
[1732637773125,19.43406721,229.33,229.26,20.0]
[1732637773303,15.07356721,229.32,229.26,20.0]
[1732637773621,15.07356721,229.35,229.27,15.07356721]
[1732637774023,19.43376721,229.35,229.27,15.07356721]
[1732637774326,15.07356721,229.33,229.26,15.07356721]
[1732637774621,15.07356721,229.34,229.26,15.07356721]
[1732637774814,15.07356721,229.33,229.26,15.07356721]
[1732637775000,15.07356721,229.32,229.25,15.07356721]
[1732637775421,15.07356721,229.31,229.24,4.3622]
[1732637775720,15.07356721,229.32,229.25,15.07356721]
[1732637776021,15.07356721,229.33,229.25,15.07356721]
[1732637776913,19.43406721,229.33,229.25,19.43536721]
[1732637777218,19.43406721,229.33,229.23,20.0]
[1732637777219,15.07356721,229.31,229.24,15.07356721]
[1732637777396,15.07356721,229.31,229.24,4.3622]
[1732637777600,15.07356721,229.3,229.24,4.3622]
[1732637777799,15.07356721,229.31,229.24,19.43576721]
[1732637778522,15.07356721,229.3,229.23,24.3624]
[1732637778903,15.07356721,229.31,229.24,15.07356721]
[1732637779614,15.07356721,229.31,229.23,24.3624]
[1732637779615,15.07356721,229.31,229.23,39.43596721]
[1732637780712,19.43436721,229.32,229.25,15.07356721]
[1732637780910,15.07356721,229.35,229.28,15.07356721]
[1732637781119,15.07356721,229.37,229.3,15.07356721]
[1732637781301,19.94945051,229.38,229.3,15.07356721]
[1732637781517,0.5161833,229.38,229.31,15.07356721]
[1732637781713,0.5161833,229.38,229.33,15.07356721]
[1732637782607,0.5161833,229.38,229.33,19.43406721]
[1732637783625,0.5161833,229.38,229.34,15.07356721]
[1732637784019,0.5161833,229.38,229.33,4.3605]
[1732637784401,0.5161833,229.38,229.33,19.43406721]
[1732637784730,0.5161833,229.38,229.34,35.07356721]
[1732637785621,0.5161833,229.38,229.34,20.0]
[1732637785930,0.5161833,229.38,229.35,15.07356721]
[1732637786300,0.5161833,229.38,229.36,4.3599]
[1732637786606,0.5161833,229.38,229.37,15.07356721]
[1732637787023,0.5161833,229.38,229.36,19.43346721]
[1732637787628,0.5161833,229.38,229.36,4.3599]
[1732637787832,0.5161833,229.38,229.36,24.3599]
[1732637788330,0.5161833,229.38,229.36,4.3599]
[1732637788546,0.5161833,229.38,229.34,4.3601]
[1732637789242,15.07356721,229.37,229.32,4.3607]
[1732637789417,0.5161833,229.38,229.32,4.3607]
[1732637789817,0.5161833,229.38,229.35,15.07356721]
[1732637790322,0.5161833,229.38,229.36,15.07356721]
[1732637790514,0.5161833,229.38,229.36,19.43346721]
[1732637790930,0.5161833,229.38,229.36,4.3599]
[1732637791130,0.5161833,229.38,229.36,19.43346721]
[1732637791434,0.5161833,229.38,229.36,4.3599]
[1732637791830,0.5161833,229.38,229.37,15.07356721]
[1732637792039,0.5161833,229.38,229.36,19.43346721]
[1732637793947,0.5161833,229.38,229.36,4.3599]
[1732637794244,0.5161833,229.38,229.35,4.3601]
[1732637794448,0.5161833,229.38,229.32,19.43426721]
[1732637794621,15.58975051,229.38,229.34,20.0]
[1732637794824,15.07356721,229.37,229.34,20.0]
[1732637795028,15.07356721,229.37,229.31,4.3608]
[1732637795540,15.58975051,229.38,229.3,15.07356721]
[1732637795861,15.07356721,229.37,229.3,19.43456721]
[1732637796717,15.07356721,229.37,229.3,15.07356721]
[1732637797025,15.07356721,229.33,229.26,4.3618]
[1732637797236,15.07356721,229.31,229.23,15.07356721]
[1732637797423,15.07356721,229.3,229.23,15.07356721]
[1732637797626,15.07356721,229.33,229.26,15.07356721]
[1732637797821,15.07356721,229.34,229.27,15.07356721]
[1732637798534,19.43336721,229.37,229.3,15.07356721]
[1732637798778,19.43336721,229.37,229.29,15.07356721]
[1732637799049,15.07356721,229.36,229.29,15.07356721]
[1732637799617,19.43336721,229.37,229.3,4.361]
[1732637799857,19.43336721,229.37,229.3,19.43456721]
[1732637800021,0.5161833,229.38,229.32,15.07356721]
[1732637800443,0.5161833,229.38,229.33,15.07356721]
[1732637800754,0.5161833,229.38,229.32,15.07356721]
[1732637801946,4.8757833,229.38,229.31,15.07356721]
[1732637802161,15.07356721,229.36,229.29,15.07356721]
[1732637802327,15.07356721,229.34,229.26,15.07356721]
[1732637802944,15.07356721,229.34,229.27,15.07356721]
[1732637803352,15.07356721,229.34,229.27,4.3615]
[1732637803534,19.43386721,229.34,229.27,4.3615]
[1732637803856,15.07356721,229.34,229.27,19.43506721]
[1732637804032,19.43366721,229.35,229.27,19.43506721]
[1732637804653,15.58975051,229.38,229.31,15.07356721]
[1732637804973,4.8756833,229.38,229.32,15.07356721]
[1732637805264,4.8756833,229.38,229.31,15.07356721]
[1732637805431,0.5161833,229.38,229.32,15.07356721]
[1732637805760,4.8756833,229.38,229.31,15.07356721]
[1732637805962,19.94925051,229.38,229.3,15.07356721]
[1732637806455,15.07356721,229.37,229.3,15.07356721]
[1732637806658,0.5161833,229.38,229.31,15.07356721]
[1732637806869,0.5161833,229.38,229.32,4.3607]
[1732637807157,0.5161833,229.38,229.32,19.43426721]
[1732637807460,0.5161833,229.38,229.32,4.3607]
[1732637808850,15.58975051,229.38,229.32,4.3607]
[1732637809055,15.58975051,229.38,229.31,19.43426721]
[1732637810853,19.94935051,229.38,229.31,19.43426721]
[1732637811156,0.5161833,229.38,229.31,19.43426721]
[1732637811367,4.8756833,229.38,229.32,15.07356721]
[1732637812160,23.776884,229.32,229.19,30.53236721]
[1732637812344,15.07356721,229.26,229.19,30.53236721]
[1732637812546,15.07356721,229.27,229.2,4.363]
[1732637812735,15.07356721,229.27,229.2,19.43656721]
[1732637813254,15.07356721,229.21,229.12,4.3645]
[1732637813460,15.07356721,229.18,229.11,19.43816721]
[1732637813792,15.07356721,229.19,229.12,15.07356721]
[1732637814243,15.07356721,229.18,229.11,19.43816721]
[1732637814846,15.07356721,229.19,229.12,35.07356721]
[1732637815352,19.43636721,229.21,229.14,15.07356721]
[1732637815550,15.07356721,229.2,229.13,15.07356721]
[1732637815749,15.07356721,229.21,229.14,4.3641]
[1732637815955,15.07356721,229.21,229.14,19.43766721]
[1732637816743,4.3624,229.23,229.15,15.07356721]
[1732637816744,15.07356721,229.23,229.15,15.07356721]
[1732637817048,4.3621,229.25,229.17,15.07356721]
[1732637817049,15.07356721,229.24,229.17,15.07356721]
[1732637817449,15.07356721,229.23,229.16,15.07356721]
[1732637817655,15.07356721,229.24,229.17,15.07356721]
[1732637818357,15.07356721,229.23,229.16,4.3637]
[1732637819170,15.07356721,229.23,229.15,15.07356721]
[1732637819370,19.43596721,229.23,229.15,19.43746721]
[1732637819571,15.07356721,229.25,229.18,15.07356721]
[1732637819861,19.43566721,229.25,229.17,15.07356721]
[1732637820066,15.07356721,229.24,229.16,35.07356721]
[1732637820244,15.07356721,229.24,229.16,15.07356721]
[1732637820666,15.07356721,229.24,229.17,15.07356721]
[1732637820869,15.07356721,229.24,229.17,19.43696721]
[1732637821980,0.6,229.28,229.19,15.07356721]
[1732637821981,15.07356721,229.26,229.19,15.07356721]
[1732637822345,15.07356721,229.26,229.18,15.07356721]
[1732637823086,15.07356721,229.26,229.19,19.43656721]
[1732637823865,15.07356721,229.3,229.23,15.07356721]
[1732637824161,15.07356721,229.26,229.18,15.07356721]
[1732637824370,15.07356721,229.22,229.16,20.0]
[1732637824563,15.07356721,229.21,229.14,4.364]
[1732637825167,15.07356721,229.22,229.14,19.43756721]
[1732637825555,5.6,229.3,229.17,15.07356721]
[1732637825752,15.07356721,229.24,229.17,15.07356721]
[1732637825950,15.07356721,229.26,229.19,15.07356721]
[1732637826150,15.07356721,229.27,229.2,15.07356721]
[1732637826368,15.07356721,229.28,229.21,15.07356721]
[1732637826571,19.43456721,229.3,229.23,15.07356721]
[1732637826879,15.07356721,229.29,229.21,15.07356721]
[1732637827060,15.07356721,229.29,229.22,19.43596721]
[1732637827373,15.07356721,229.27,229.2,35.07356721]
[1732637827670,15.07356721,229.26,229.2,20.0]
[1732637827870,4.361,229.3,229.13,25.98406721]
[1732637827871,15.07356721,229.23,229.16,19.43706721]
[1732637828081,15.07356721,229.22,229.16,4.3635]
[1732637828262,15.07356721,229.23,229.16,15.07356721]
[1732637828458,23.776884,229.29,229.15,4.3639]
[1732637828659,15.07356721,229.27,229.2,15.07356721]
[1732637828853,23.776884,229.29,229.21,15.07356721]
[1732637828854,15.07356721,229.28,229.21,15.07356721]
[1732637829052,15.07356721,229.28,229.21,19.43626721]
[1732637829554,15.07356721,229.27,229.21,4.3627]
[1732637829978,15.07356721,229.27,229.2,15.07356721]
[1732637830271,15.07356721,229.27,229.2,19.43646721]
[1732637830473,15.07356721,229.26,229.19,15.07356721]
[1732637830689,15.07356721,229.24,229.16,15.07356721]
[1732637830861,15.07356721,229.26,229.19,15.07356721]
[1732637831055,15.07356721,229.25,229.17,15.07356721]
[1732637831265,15.07356721,229.23,229.15,15.07356721]
[1732637831657,15.07356721,229.24,229.17,15.07356721]
[1732637832154,15.07356721,229.25,229.17,15.07356721]
[1732637832466,19.43476721,229.29,229.21,15.07356721]
[1732637832786,10.3637,229.31,229.24,15.07356721]
[1732637832954,15.07356721,229.3,229.23,15.07356721]
[1732637833155,15.07356721,229.3,229.22,15.07356721]
[1732637833465,15.07356721,229.3,229.23,15.07356721]
[1732637833785,25.43726721,229.31,229.24,15.07356721]
[1732637834376,25.43726721,229.31,229.23,15.07356721]
[1732637834770,15.07356721,229.3,229.23,15.07356721]
[1732637835080,25.43726721,229.31,229.23,15.07356721]
[1732637835664,15.07356721,229.3,229.23,15.07356721]
[1732637836062,15.697,229.34,229.28,15.07356721]
[1732637836276,15.097,229.34,229.28,15.07356721]
[1732637836585,30.17056721,229.34,229.27,15.07356721]
[1732637836966,19.43406721,229.33,229.25,15.07356721]
[1732637837292,19.43406721,229.33,229.26,15.07356721]
[1732637837465,4.3605,229.33,229.26,15.07356721]
[1732637838988,19.43406721,229.33,229.26,15.07356721]
[1732637839558,4.3605,229.33,229.26,15.07356721]
[1732637840461,15.07356721,229.32,229.25,15.07356721]
[1732637840780,15.07356721,229.3,229.23,15.07356721]
[1732637841272,19.43406721,229.33,229.25,15.07356721]
[1732637842077,15.07356721,229.29,229.21,15.07356721]
[1732637842276,20.2618,229.33,229.21,15.07356721]
[1732637842489,15.07356721,229.27,229.21,15.07356721]
[1732637842785,23.776884,229.32,229.24,15.07356721]
[1732637842956,15.07356721,229.3,229.22,15.07356721]
[1732637843559,23.776884,229.32,229.2,15.07356721]
[1732637843560,15.07356721,229.28,229.2,15.07356721]
[1732637844465,4.3616,229.27,229.22,15.07356721]
[1732637845480,4.3612,229.29,229.22,15.07356721]
[1732637846986,15.07356721,229.28,229.2,15.07356721]
[1732637847285,15.07356721,229.24,229.17,20.0]
[1732637847460,15.07356721,229.24,229.16,15.07356721]
[1732637847985,15.07356721,229.25,229.17,15.07356721]
[1732637848565,15.07356721,229.23,229.15,15.07356721]
[1732637848795,15.07356721,229.24,229.16,15.07356721]
[1732637849093,15.07356721,229.25,229.14,20.8199]
[1732637849270,30.33996721,229.26,229.18,15.07356721]
[1732637849666,19.43536721,229.26,229.2,15.07356721]
[1732637849887,4.3618,229.26,229.2,15.07356721]
[1732637850186,4.3618,229.26,229.22,15.07356721]
[1732637850389,4.3612,229.29,229.22,15.07356721]
[1732637851266,4.3612,229.29,229.23,15.07356721]
[1732637853293,15.07356721,229.31,229.23,15.07356721]
[1732637853476,15.07356721,229.28,229.21,15.07356721]
[1732637854202,38.85045121,229.3,229.21,15.07356721]
[1732637854571,4.3612,229.29,229.21,15.07356721]
[1732637854783,15.07356721,229.28,229.21,15.07356721]
[1732637854990,15.07356721,229.26,229.17,15.07356721]
[1732637855195,15.07356721,229.24,229.16,15.07356721]
[1732637855492,23.776884,229.27,229.19,15.07356721]
[1732637855703,23.776884,229.25,229.18,15.07356721]
[1732637856081,15.07356721,229.24,229.16,15.07356721]
[1732637856571,4.3624,229.23,229.19,15.07356721]
[1732637856795,4.3624,229.23,229.18,15.07356721]
[1732637856997,4.3624,229.23,229.17,15.07356721]
[1732637857484,4.3624,229.23,229.13,4.3643]
[1732637857485,4.3624,229.23,229.18,15.07356721]
[1732637858307,4.362,229.25,229.19,15.07356721]
[1732637859094,4.362,229.25,229.18,15.07356721]
[1732637859773,4.362,229.25,229.19,15.07356721]
[1732637860004,4.362,229.25,229.21,15.07356721]
[1732637860198,4.3616,229.27,229.22,15.07356721]
[1732637860397,4.3616,229.27,229.25,15.07356721]
[1732637860578,4.3609,229.31,229.25,15.07356721]
[1732637860778,4.3609,229.31,229.26,15.07356721]
[1732637860991,3.2641453,229.32,229.28,15.07356721]
[1732637861292,4.3608,229.32,229.29,15.07356721]
[1732637862112,4.3605,229.33,229.29,15.07356721]
[1732637862485,4.3605,229.33,229.28,15.07356721]
[1732637863388,15.07356721,229.36,229.29,15.07356721]
[1732637863588,3.26287358,229.35,229.27,15.07356721]
[1732637863799,15.67356721,229.34,229.27,15.07356721]
[1732637863975,15.07356721,229.32,229.25,15.07356721]
[1732637864182,4.3609,229.31,229.23,15.07356721]
[1732637864987,4.3609,229.31,229.25,15.07356721]
[1732637865489,4.3609,229.31,229.26,15.07356721]
[1732637865694,4.3607,229.33,229.26,15.07356721]
[1732637866609,15.07356721,229.32,229.24,15.07356721]
[1732637866788,15.07356721,229.3,229.22,15.07356721]
[1732637867102,15.07356721,229.32,229.23,15.07356721]
[1732637867302,38.85045121,229.32,229.25,15.07356721]
[1732637867904,4.3609,229.31,229.25,15.07356721]
[1732637868204,15.07356721,229.3,229.23,15.07356721]
[1732637868501,19.43446721,229.31,229.23,15.07356721]
[1732637869000,15.07356721,229.27,229.18,16.046]
[1732637869190,15.07356721,229.24,229.16,15.07356721]
[1732637869882,4.3624,229.23,229.16,15.07356721]
[1732637870078,4.3624,229.23,229.17,15.07356721]
[1732637870278,15.07356721,229.25,229.14,4.3641]
[1732637870279,4.362,229.25,229.2,15.07356721]
[1732637870884,4.362,229.25,229.19,15.07356721]
[1732637871297,4.362,229.25,229.21,15.07356721]
[1732637871704,4.362,229.25,229.2,15.07356721]
[1732637871885,4.3616,229.27,229.2,15.07356721]
[1732637872087,15.07356721,229.26,229.19,15.07356721]
[1732637873998,4.362,229.25,229.19,15.07356721]
[1732637876332,4.362,229.25,229.17,15.07356721]
[1732637876524,15.07356721,229.24,229.17,15.07356721]
[1732637877119,4.362,229.25,229.17,15.07356721]
[1732637877823,15.07356721,229.18,229.07,16.046]
[1732637878021,15.07356721,229.16,229.08,15.07356721]
[1732637878233,5.6,229.23,229.07,16.046]
[1732637878234,15.07356721,229.18,229.1,15.07356721]
[1732637878413,15.07356721,229.19,229.11,15.07356721]
[1732637880117,4.3635,229.17,229.11,15.07356721]
[1732637880284,4.3635,229.17,229.1,15.07356721]
[1732637880714,4.3635,229.17,229.11,15.07356721]
[1732637881415,4.3635,229.17,229.12,15.07356721]
[1732637881592,15.07356721,229.18,229.11,15.07356721]
[1732637882216,15.07356721,229.18,229.1,15.07356721]
[1732637883091,15.271,229.19,229.07,16.046]
[1732637883092,15.07356721,229.16,229.08,15.07356721]
[1732637883388,15.07356721,229.15,229.07,15.07356721]
[1732637883593,4.3649,229.1,229.03,15.07356721]
[1732637883795,19.43846721,229.1,229.02,15.07356721]
[1732637883997,4.3649,229.1,229.04,15.07356721]
[1732637884294,4.3649,229.1,229.05,15.07356721]
[1732637884495,4.3649,229.1,229.03,15.07356721]
[1732637884695,4.3649,229.1,229.05,15.07356721]
[1732637884921,21.24146721,229.15,229.08,15.07356721]
[1732637885789,4.3641,229.14,229.07,15.07356721]
[1732637885989,19.43766721,229.14,229.06,15.07356721]
[1732637886221,19.43766721,229.14,229.05,15.07356721]
[1732637886222,15.07356721,229.12,229.05,15.07356721]
[1732637886601,15.07356721,229.09,229.01,31.71406721]
[1732637886908,15.07356721,229.08,229.01,15.07356721]
[1732637887114,15.07356721,229.09,229.01,15.07356721]
[1732637890319,4.3639,229.15,229.08,15.07356721]
[1732637890615,4.3639,229.15,229.09,15.07356721]
[1732637891601,19.7051,229.17,229.1,15.07356721]
[1732637892116,4.3637,229.17,229.11,15.07356721]
[1732637892619,4.3637,229.17,229.1,15.07356721]
[1732637893116,4.3637,229.17,229.11,15.07356721]
[1732637893426,21.24146721,229.21,229.13,15.07356721]
[1732637893617,4.363,229.2,229.14,15.07356721]
[1732637894119,15.07356721,229.21,229.14,15.07356721]
[1732637894329,0.6,229.25,229.08,15.2784]
[1732637894330,4.3624,229.23,229.17,15.07356721]
[1732637894629,4.3621,229.25,229.18,15.07356721]
[1732637894802,19.43566721,229.25,229.17,15.07356721]
[1732637895122,19.43476721,229.29,229.21,15.07356721]
[1732637895629,20.43527684,229.29,229.21,15.07356721]
[1732637895924,20.43527684,229.29,229.23,15.07356721]
[1732637896517,21.24146721,229.31,229.23,15.07356721]
[1732637896700,4.361,229.3,229.21,15.07356721]
[1732637896899,15.07356721,229.27,229.19,15.07356721]
[1732637897504,15.07356721,229.25,229.17,15.07356721]
[1732637897707,15.8637,229.3,229.18,15.07356721]
[1732637897708,15.07356721,229.26,229.18,15.07356721]
[1732637898012,15.07356721,229.26,229.18,35.07356721]
[1732637898216,15.07356721,229.25,229.18,35.07356721]
[1732637898831,15.07356721,229.26,229.19,15.07356721]
[1732637899019,19.43536721,229.26,229.19,15.07356721]
[1732637900111,15.07356721,229.25,229.18,20.0]
[1732637900433,15.07356721,229.25,229.17,15.07356721]
[1732637900832,19.43576721,229.25,229.17,19.43706721]
[1732637901329,11.5027,229.3,229.17,19.43706721]
[1732637901330,4.3619,229.26,229.19,15.07356721]
[1732637902018,19.43516721,229.27,229.19,15.07356721]
[1732637902825,19.43516721,229.27,229.21,15.07356721]
[1732637903328,19.43516721,229.27,229.16,4.3637]
[1732637903329,19.43516721,229.27,229.19,15.07356721]
[1732637903528,15.07356721,229.26,229.19,15.07356721]
[1732637903729,19.43516721,229.27,229.19,15.07356721]
[1732637903932,19.43516721,229.27,229.22,15.07356721]
[1732637903933,4.3616,229.27,229.22,15.07356721]
[1732637904114,19.43516721,229.27,229.19,15.07356721]
[1732637904614,19.43516721,229.27,229.2,15.07356721]
[1732637905208,4.3616,229.27,229.21,15.07356721]
[1732637905409,4.3616,229.27,229.2,15.07356721]
[1732637905614,19.43516721,229.27,229.2,15.07356721]
[1732637905842,4.3616,229.27,229.22,15.07356721]
[1732637906139,15.07356721,229.29,229.21,15.07356721]
[1732637906334,15.07356721,229.28,229.2,15.07356721]
[1732637907236,4.361,229.3,229.23,15.07356721]
[1732637907443,15.07356721,229.29,229.21,15.07356721]
[1732637908032,4.361,229.3,229.24,15.07356721]
[1732637909020,4.3605,229.33,229.28,15.07356721]
[1732637909351,15.07356721,229.34,229.26,15.07356721]
[1732637909842,15.07356721,229.34,229.27,15.07356721]
[1732637910141,4.3601,229.35,229.28,15.07356721]
[1732637910337,0.5161833,229.38,229.32,15.07356721]
[1732637910546,4.3598,229.37,229.32,15.07356721]
[1732637912824,4.8756833,229.38,229.33,15.07356721]
[1732637913425,0.5161833,229.38,229.37,15.07356721]
[1732637913823,0.5161833,229.38,229.36,15.07356721]
[1732637914233,0.5161833,229.38,229.35,15.07356721]
[1732637916640,0.5161833,229.38,229.33,15.07356721]
[1732637916813,4.8756833,229.38,229.31,15.07356721]
[1732637917922,0.5161833,229.38,229.34,15.07356721]
[1732637918121,4.8757833,229.38,229.33,15.07356721]
[1732637918437,15.07356721,229.37,229.29,15.07356721]
[1732637918930,19.94935051,229.38,229.3,15.07356721]
[1732637919530,19.94935051,229.38,229.31,15.07356721]
[1732637919722,19.94935051,229.38,229.3,15.07356721]
[1732637919923,19.94935051,229.38,229.31,15.07356721]
[1732637920136,19.94935051,229.38,229.3,15.07356721]
[1732637920348,4.8757833,229.38,229.32,15.07356721]
[1732637920549,19.94935051,229.38,229.3,15.07356721]
[1732637920846,15.07356721,229.37,229.3,15.07356721]
[1732637921751,15.07356721,229.36,229.28,15.07356721]
[1732637922050,15.07356721,229.31,229.23,15.07356721]
[1732637922252,15.07356721,229.29,229.21,19.43616721]
[1732637922551,15.07356721,229.3,229.23,15.07356721]
[1732637924138,4.3612,229.29,229.23,15.07356721]
[1732637924429,4.3612,229.29,229.21,15.07356721]
[1732637925445,15.07356721,229.28,229.21,15.07356721]
[1732637925620,15.07356721,229.28,229.2,35.07356721]
[1732637925821,15.07356721,229.28,229.21,15.07356721]
[1732637926365,19.43516721,229.28,229.21,15.07356721]
[1732637927253,15.07356721,229.3,229.22,15.07356721]
[1732637927434,4.3605,229.33,229.26,15.07356721]
[1732637928052,4.3605,229.33,229.16,23.902374]
[1732637928053,4.3605,229.33,229.28,15.07356721]
[1732637928431,15.07356721,229.36,229.28,15.07356721]
[1732637928432,4.3601,229.35,229.28,15.07356721]
[1732637928627,4.3601,229.35,229.3,15.07356721]
[1732637929649,4.3599,229.37,229.3,15.07356721]
[1732637929852,0.5161833,229.38,229.31,15.07356721]
[1732637930024,4.8757833,229.38,229.31,15.07356721]
[1732637930433,0.5161833,229.38,229.32,19.43426721]
[1732637930646,0.5161833,229.38,229.34,15.07356721]
[1732637931360,0.5161833,229.38,229.35,15.07356721]
[1732637932442,0.5161833,229.38,229.34,15.07356721]
[1732637933161,0.5161833,229.38,229.36,15.07356721]
[1732637933327,0.5161833,229.38,229.37,15.07356721]
[1732637934625,0.5161833,229.38,229.37,19.43326721]
[1732637938761,0.5161833,229.38,229.37,15.07356721]
[1732637938933,0.5161833,229.38,229.37,19.43326721]
[1732637940665,0.5161833,229.38,229.37,15.07356721]
[1732637940837,0.5161833,229.38,229.34,4.3603]
[1732637941035,0.5161833,229.38,229.35,15.07356721]
[1732637941374,0.5161833,229.38,229.37,15.07356721]